bitfinex/quotes_SOLUSD_20260202
["timestamp","ask_amount","ask_price","bid_price","bid_amount"]
[1770047761511,3.86102763,104.71,104.66,4.07468339]
[1770047761706,8.76675603,104.7,104.66,4.07468339]
[1770047761908,12.62778366,104.71,104.66,12.84143942]
[1770047762107,8.8177447,104.72,104.68,4.07468339]
[1770047762290,8.76675603,104.71,104.67,30.61468339]
[1770047762798,8.76675603,104.71,104.68,26.54]
[1770047763185,8.76675603,104.7,104.66,4.07468339]
[1770047763382,8.76675603,104.68,104.65,30.61468339]
[1770047763598,8.76675603,104.69,104.65,30.61468339]
[1770047763910,8.76675603,104.67,104.65,26.54]
[1770047764113,8.76675603,104.68,104.65,26.54]
[1770047764314,12.64135297,104.73,104.67,4.07468339]
[1770047764613,8.76675603,104.69,104.66,26.54]
[1770047764820,8.76675603,104.68,104.64,9.55655468]
[1770047764995,8.76675603,104.7,104.67,26.54]
[1770047765196,3.86102763,104.71,104.67,26.54]
[1770047765415,8.76675603,104.71,104.67,26.54]
[1770047765715,12.62778366,104.73,104.68,9.55292319]
[1770047766105,3.86102763,104.75,104.68,18.31967922]
[1770047766420,3.86102763,104.74,104.69,8.76675603]
[1770047766710,3.86102763,104.72,104.68,26.54]
[1770047766916,8.76675603,104.7,104.68,26.54]
[1770047767507,8.76675603,104.7,104.69,26.54]
[1770047767700,8.76675603,104.71,104.69,20.28772045]
[1770047767903,8.76675603,104.7,104.69,20.28772045]
[1770047768415,3.86102763,104.72,104.69,20.28772045]
[1770047768720,8.76675603,104.71,104.69,20.28772045]
[1770047771306,12.62778366,104.72,104.69,20.28772045]
[1770047771827,8.76675603,104.71,104.69,20.28772045]
[1770047772202,8.76675603,104.7,104.69,20.28772045]
[1770047772409,12.62778366,104.71,104.69,20.28772045]
[1770047773122,3.86102763,104.73,104.69,20.28772045]
[1770047773314,8.76675603,104.71,104.69,20.28772045]
[1770047774214,12.62778366,104.72,104.69,20.28772045]
[1770047775106,12.62778366,104.72,104.7,26.54]
[1770047775504,8.76675603,104.73,104.7,26.54]
[1770047775707,3.86102763,104.74,104.7,26.54]
[1770047775708,8.76675603,104.74,104.7,26.54]
[1770047775920,8.76675603,104.73,104.7,26.54]
[1770047776217,8.76675603,104.73,104.7,30.61468339]
[1770047777318,8.76675603,104.73,104.7,26.54]
[1770047777620,12.62778366,104.73,104.7,26.54]
[1770047778920,3.86102763,104.73,104.7,26.54]
[1770047780009,12.62778366,104.73,104.7,26.54]
[1770047780726,3.86102763,104.73,104.7,26.54]
[1770047781021,3.77658947,104.74,104.7,35.30675603]
[1770047781227,3.77658947,104.76,104.71,3.69225301]
[1770047781408,12.5433455,104.75,104.71,3.69225301]
[1770047781724,3.77658947,104.74,104.7,48.54950597]
[1770047782909,12.5433455,104.74,104.71,26.54]
[1770047783730,8.76675603,104.73,104.71,26.54]
[1770047783921,12.5433455,104.72,104.65,18.32241775]
[1770047784118,3.77658947,104.73,104.66,26.54]
[1770047784429,12.5433455,104.73,104.68,8.76675603]
[1770047784818,3.77658947,104.72,104.68,8.76675603]
[1770047785034,12.5433455,104.72,104.67,18.32024655]
[1770047785321,3.77658947,104.72,104.68,8.76675603]
[1770047786010,3.77658947,104.72,104.68,12.45900904]
[1770047786623,12.5433455,104.72,104.67,3.69225301]
[1770047786829,12.5433455,104.72,104.68,38.99900904]
[1770047787029,3.77658947,104.72,104.68,38.99900904]
[1770047788127,3.77658947,104.72,104.68,39.78515029]
[1770047788431,3.77658947,104.72,104.68,48.55190632]
[1770047789332,12.5433455,104.74,104.7,3.69225301]
[1770047789521,3.77658947,104.73,104.69,8.76675603]
[1770047789727,3.77658947,104.73,104.69,12.45900904]
[1770047790254,12.5433455,104.75,104.71,3.69225301]
[1770047790537,3.77658947,104.74,104.69,12.45900904]
[1770047790828,12.5433455,104.72,104.68,3.69225301]
[1770047791035,12.5433455,104.73,104.69,3.69225301]
[1770047791830,3.77658947,104.72,104.68,18.31964625]
[1770047792032,3.77658947,104.69,104.65,8.76675603]
[1770047792332,3.77658947,104.71,104.67,8.76675603]
[1770047792533,12.5433455,104.71,104.66,18.32107792]
[1770047792831,8.76675603,104.68,104.64,26.54]
[1770047793038,8.76675603,104.68,104.64,35.30675603]
[1770047793216,3.77658947,104.71,104.64,26.54]
[1770047793420,3.77658947,104.7,104.66,8.76675603]
[1770047793825,12.5433455,104.72,104.67,8.76675603]
[1770047794024,3.77658947,104.74,104.69,8.76675603]
[1770047794430,3.77658947,104.73,104.69,8.76675603]
[1770047794726,12.5433455,104.73,104.68,37.3726811]
[1770047794933,3.77658947,104.73,104.7,8.76675603]
[1770047795132,3.77658947,104.73,104.69,20.38469179]
[1770047795531,3.77658947,104.73,104.69,18.31876672]
[1770047795737,3.77658947,104.77,104.71,10.84889004]
[1770047795939,26.54,104.82,104.72,2.08213401]
[1770047795940,8.76675603,104.78,104.72,2.08213401]
[1770047796238,3.77658947,104.72,104.66,8.76675603]
[1770047796442,3.77658947,104.7,104.66,9.55425304]
[1770047796621,12.5433455,104.7,104.66,2.09815678]
[1770047796822,8.76675603,104.69,104.65,11.65380625]
[1770047797033,8.76675603,104.69,104.65,20.42056228]
[1770047797238,8.76675603,104.69,104.65,10.87411372]
[1770047797239,3.77658947,104.69,104.65,10.87411372]
[1770047797444,3.77658947,104.69,104.65,20.42952506]
[1770047797621,12.5433455,104.69,104.65,2.10735769]
[1770047797821,8.76675603,104.7,104.65,20.42970992]
[1770047798047,12.5433455,104.7,104.65,20.42970992]
[1770047798831,12.5433455,104.7,104.65,46.96970992]
[1770047799540,3.77658947,104.7,104.65,46.96970992]
[1770047800144,12.5433455,104.7,104.65,46.96970992]
[1770047800850,12.5433455,104.7,104.65,46.99668338]
[1770047801532,3.77658947,104.75,104.7,2.14311656]
[1770047801849,3.77658947,104.75,104.69,8.76675603]
[1770047801850,8.76675603,104.73,104.69,26.54]
[1770047802255,12.97172277,104.73,104.69,26.54]
[1770047802555,4.20496674,104.73,104.69,35.30675603]
[1770047802733,12.97172277,104.73,104.69,26.54]
[1770047803637,4.20496674,104.71,104.67,32.65035676]
[1770047803832,4.20496674,104.71,104.68,9.55248611]
[1770047804354,12.97172277,104.73,104.69,9.55195134]
[1770047804956,4.20496674,104.72,104.69,9.55195134]
[1770047805653,12.97172277,104.72,104.67,36.11959124]
[1770047805856,4.20496674,104.7,104.67,26.54]
[1770047806344,12.97172277,104.72,104.67,35.30675603]
[1770047806545,8.76675603,104.72,104.67,35.30675603]
[1770047806744,4.20496674,104.71,104.67,35.30675603]
[1770047807252,8.76675603,104.7,104.66,9.55465839]
[1770047807436,12.97172277,104.7,104.66,9.55465839]
[1770047807634,12.97172277,104.7,104.65,44.91089365]
[1770047807635,4.20496674,104.69,104.65,44.91089365]
[1770047807840,12.97172277,104.69,104.65,8.76675603]
[1770047808053,12.97172277,104.69,104.65,9.55558044]
[1770047808256,4.20496674,104.69,104.65,18.32233647]
[1770047808458,4.20496674,104.69,104.65,44.86233647]
[1770047808654,12.97172277,104.69,104.65,26.54]
[1770047808848,12.97172277,104.69,104.65,36.0955231]
[1770047809238,4.20496674,104.68,104.65,36.0955231]
[1770047809754,13.72235054,104.75,104.65,44.93646339]
[1770047809755,4.20496674,104.7,104.65,44.93646339]
[1770047810065,4.20496674,104.7,104.66,8.76675603]
[1770047810562,4.20496674,104.7,104.67,8.76675603]
[1770047810742,8.76675603,104.72,104.67,8.76675603]
[1770047811053,4.20496674,104.71,104.66,8.84707276]
[1770047811255,8.76675603,104.71,104.66,35.38707276]
[1770047811457,4.20496674,104.68,104.65,9.5555231]
[1770047812457,4.20496674,104.68,104.65,36.0955231]
[1770047812844,4.20496674,104.68,104.65,26.54]
[1770047813647,4.20496674,104.7,104.66,26.63829474]
[1770047813969,4.20496674,104.7,104.66,36.09440121]
[1770047813970,4.20496674,104.69,104.66,36.09440121]
[1770047814484,12.98570728,104.69,104.66,36.09440121]
[1770047814985,4.20496674,104.68,104.66,26.54]
[1770047815167,4.20496674,104.66,104.63,9.55700611]
[1770047816384,4.20496674,104.67,104.63,9.55700611]
[1770047816884,12.98570728,104.67,104.63,9.55700611]
[1770047817482,8.78074054,104.68,104.64,0.12131643]
[1770047817773,4.20496674,104.69,104.64,8.90205697]
[1770047818083,4.20496674,104.68,104.65,9.55566172]
[1770047818271,40.36229264,104.75,104.66,4.09733175]
[1770047818462,8.78074054,104.71,104.66,4.09733175]
[1770047819579,8.78074054,104.71,104.66,12.87807229]
[1770047820079,8.78074054,104.7,104.67,9.55383586]
[1770047820301,12.74528086,104.68,104.65,49.0]
[1770047820586,12.74528086,104.67,104.63,36.09719662]
[1770047821086,3.96454032,104.64,104.61,9.55904584]
[1770047821386,3.96454032,104.65,104.61,22.43711813]
[1770047821571,3.96454032,104.65,104.61,18.33978638]
[1770047822382,12.74528086,104.67,104.62,4.09733175]
[1770047822679,12.74528086,104.67,104.62,12.87807229]
[1770047823380,3.96454032,104.64,104.61,9.55915899]
[1770047823791,3.96454032,104.66,104.62,8.78074054]
[1770047824281,12.74528086,104.66,104.62,9.5581183]
[1770047824871,3.96454032,104.7,104.64,8.78074054]
[1770047825175,12.74528086,104.68,104.64,4.09733175]
[1770047825479,3.96454032,104.68,104.64,4.09733175]
[1770047825680,12.74528086,104.67,104.63,26.54]
[1770047826186,12.74528086,104.68,104.63,48.97473384]
[1770047826375,3.96454032,104.66,104.63,36.09666155]
[1770047826580,12.74528086,104.66,104.63,26.54]
[1770047827084,3.96454032,104.66,104.63,36.09740872]
[1770047827464,3.96454032,104.67,104.63,40.19474047]
[1770047827667,12.74528086,104.67,104.63,40.19474047]
[1770047827873,12.74528086,104.69,104.64,12.87807229]
[1770047828088,8.78074054,104.69,104.64,4.09733175]
[1770047828390,12.74528086,104.67,104.63,36.09740872]
[1770047828791,12.74528086,104.66,104.63,26.54]
[1770047828987,3.96454032,104.66,104.63,26.54]
[1770047829388,12.74528086,104.66,104.62,13.65487237]
[1770047829886,3.96454032,104.62,104.58,0.1]
[1770047830072,3.96454032,104.63,104.58,46.44485802]
[1770047830273,3.96454032,104.63,104.59,8.78074054]
[1770047830481,3.96454032,104.64,104.6,4.09733175]
[1770047830691,12.74528086,104.65,104.61,4.09733175]
[1770047831198,3.96454032,104.64,104.59,72.9015271]
[1770047831690,3.96454032,104.63,104.59,48.99866832]
[1770047831999,12.74528086,104.63,104.59,40.21792778]
[1770047832202,3.96454032,104.63,104.59,40.21792778]
[1770047832492,3.96454032,104.63,104.59,48.99866832]
[1770047832694,3.96454032,104.63,104.59,72.9015271]
[1770047832895,12.74528086,104.65,104.61,4.09733175]
[1770047834684,12.74528086,104.65,104.61,9.55931555]
[1770047834897,12.74528086,104.65,104.6,48.99809825]
[1770047835999,12.74528086,104.65,104.6,72.89867186]
[1770047836581,8.78074054,104.64,104.6,40.21735771]
[1770047836878,12.74528086,104.65,104.6,40.21735771]
[1770047837081,3.96454032,104.63,104.6,85.12002596]
[1770047837303,3.96454032,104.64,104.58,0.1]
[1770047837476,3.96454032,104.6,104.58,0.1]
[1770047837676,12.74528086,104.63,104.58,12.97807229]
[1770047837985,3.96454032,104.61,104.58,0.1]
[1770047838184,12.74528086,104.61,104.58,9.66172453]
[1770047838590,3.96454032,104.61,104.58,9.66172453]
[1770047838901,12.74528086,104.61,104.58,0.1]
[1770047842616,8.78074054,104.6,104.58,0.1]
[1770047842836,3.96454032,104.61,104.58,0.1]
[1770047843011,8.78074054,104.6,104.58,0.1]
[1770047843915,8.78074054,104.65,104.58,0.1]
[1770047843916,12.78400017,104.59,104.58,0.1]
[1770047844294,12.78400017,104.59,104.55,89.28438981]
[1770047844808,12.78400017,104.59,104.55,79.72010704]
[1770047845019,12.78400017,104.59,104.55,89.28451502]
[1770047845224,12.78400017,104.6,104.56,4.16010704]
[1770047845806,4.00325963,104.6,104.56,4.16010704]
[1770047846007,12.78400017,104.6,104.56,4.16010704]
[1770047846406,4.00325963,104.56,104.54,49.1]
[1770047846624,7.52363158,104.56,104.54,0.1]
[1770047847002,4.00325963,104.54,104.5,4.16010704]
[1770047847199,3.52037195,104.55,104.49,7.46158069]
[1770047847200,7.52363158,104.55,104.51,4.16010704]
[1770047847419,4.00325963,104.55,104.51,4.16010704]
[1770047847625,3.52037195,104.57,104.53,4.16010704]
[1770047848009,7.52363158,104.57,104.53,4.16010704]
[1770047848204,4.00325963,104.56,104.5,4.16010704]
[1770047848411,4.00325963,104.55,104.51,13.72805751]
[1770047848724,4.00325963,104.56,104.52,13.72755006]
[1770047848927,4.00325963,104.56,104.52,4.16010704]
[1770047849224,8.80336497,104.55,104.52,4.16010704]
[1770047850025,8.80336497,104.57,104.53,4.16010704]
[1770047850409,4.00325963,104.57,104.53,4.16010704]
[1770047850711,8.80336497,104.56,104.53,4.16010704]
[1770047850916,12.8066246,104.57,104.53,13.72672409]
[1770047851105,12.8066246,104.57,104.53,4.16010704]
[1770047851302,4.00325963,104.59,104.54,10.06819178]
[1770047851507,8.80336497,104.58,104.54,10.06819178]
[1770047851824,8.80336497,104.55,104.52,9.56751098]
[1770047852002,8.80336497,104.55,104.51,0.50247531]
[1770047852205,13.05212731,104.56,104.52,10.06992896]
[1770047852820,13.05212731,104.56,104.52,10.0698917]
[1770047853225,4.24876234,104.56,104.52,10.0698917]
[1770047853628,13.05212731,104.58,104.53,0.50247531]
[1770047853806,8.80336497,104.57,104.53,0.50247531]
[1770047854008,8.80336497,104.56,104.53,0.50247531]
[1770047854224,8.80336497,104.56,104.52,10.0698917]
[1770047854529,13.05212731,104.56,104.52,0.50247531]
[1770047854728,8.80336497,104.55,104.52,0.50247531]
[1770047854912,13.05212731,104.56,104.52,10.06988978]
[1770047855428,13.05212731,104.55,104.51,10.07065119]
[1770047855628,13.05212731,104.55,104.52,9.5675272]
[1770047855825,4.24876234,104.55,104.51,10.07053678]
[1770047856032,8.80336497,104.56,104.52,9.56751272]
[1770047856033,13.05212731,104.56,104.52,9.56751272]
[1770047856232,13.05212731,104.56,104.52,10.06998803]
[1770047856730,13.05212731,104.57,104.53,0.50247531]
[1770047857537,4.24876234,104.61,104.54,0.50247531]
[1770047857866,8.80336497,104.6,104.56,0.50247531]
[1770047858136,13.05212731,104.59,104.55,0.50247531]
[1770047858313,8.80336497,104.58,104.54,0.50247531]
[1770047858714,13.05212731,104.57,104.53,33.98514874]
[1770047858930,8.80336497,104.58,104.54,0.50247531]
[1770047859738,13.05212731,104.59,104.55,9.56480153]
[1770047860034,8.80336497,104.58,104.55,9.56480153]
[1770047860228,13.05212731,104.58,104.55,9.56480153]
[1770047860437,4.24876234,104.58,104.55,9.56480153]
[1770047860934,4.24876234,104.61,104.56,0.50247531]
[1770047861136,13.05212731,104.6,104.55,33.97928066]
[1770047861629,13.05212731,104.59,104.55,33.97928066]
[1770047861833,4.24876234,104.63,104.58,0.50247531]
[1770047862023,4.24876234,104.63,104.57,9.08768811]
[1770047862024,4.24876234,104.63,104.59,0.50247531]
[1770047862222,13.05212731,104.63,104.59,0.50247531]
[1770047862426,13.05212731,104.63,104.58,0.50247531]
[1770047862628,39.84879499,104.68,104.59,12.96347201]
[1770047862935,8.80336497,104.65,104.6,8.80336497]
[1770047863111,8.80336497,104.61,104.57,4.16010704]
[1770047863738,8.80336497,104.62,104.58,9.56205775]
[1770047864116,22.82346798,104.67,104.6,8.80336497]
[1770047864117,13.26879499,104.67,104.6,8.80336497]
[1770047864338,8.80336497,104.66,104.6,8.80336497]
[1770047864523,8.80336497,104.65,104.6,8.80336497]
[1770047864722,12.8066246,104.65,104.6,8.80336497]
[1770047865716,12.8066246,104.65,104.61,33.45760443]
[1770047865917,4.00325963,104.65,104.63,8.80336497]
[1770047866226,4.00325963,104.65,104.62,8.80336497]
[1770047867339,4.00325963,104.65,104.61,8.80336497]
[1770047867640,4.00325963,104.65,104.6,13.72014607]
[1770047867641,4.00325963,104.64,104.6,22.52351104]
[1770047868640,21.290296,160.0,104.6,8.80336497]
[1770047868641,4.13019355,104.63,104.6,8.80336497]
[1770047868822,4.13019355,104.64,104.61,8.80336497]
[1770047869023,4.13019355,104.64,104.61,8.76528685]
[1770047869339,4.13019355,104.64,104.6,18.36313885]
[1770047869846,4.13019355,104.64,104.6,8.80336497]
[1770047870667,8.80336497,104.64,104.59,18.36410781]
[1770047870819,4.16578594,104.67,104.62,13.04729558]
[1770047871330,4.16578594,104.67,104.63,8.80336497]
[1770047871537,4.16578594,104.67,104.62,13.04729558]
[1770047871731,4.16578594,104.65,104.61,8.80336497]
[1770047872524,4.16578594,104.65,104.61,8.78707317]
[1770047872727,4.16578594,104.65,104.61,18.34578349]
[1770047873623,4.16578594,104.65,104.61,22.5897141]
[1770047874448,4.16578594,104.65,104.62,8.78707317]
[1770047874642,4.16578594,104.65,104.61,46.48800298]
[1770047874846,4.16578594,104.65,104.61,37.70092981]
[1770047875038,4.16578594,104.67,104.63,13.03100378]
[1770047875444,4.16578594,104.66,104.61,37.70092981]
[1770047875644,4.16578594,104.65,104.61,46.48800298]
[1770047875954,4.16578594,104.65,104.62,8.78707317]
[1770047876354,4.16578594,104.65,104.61,46.48800298]
[1770047877353,4.16578594,104.65,104.62,8.78707317]
[1770047877956,4.16578594,104.67,104.63,13.03100378]
[1770047878344,4.16578594,104.66,104.62,13.03100378]
[1770047878550,12.95285911,104.66,104.62,13.03100378]
[1770047878757,4.16578594,104.66,104.62,22.58877201]
[1770047879054,4.16578594,104.66,104.63,8.78707317]
[1770047879852,4.16578594,104.66,104.62,46.48477659]
[1770047880152,4.16578594,104.65,104.62,9.55776823]
[1770047880454,4.16578594,104.64,104.61,18.34589893]
[1770047881156,4.16578594,104.63,104.6,18.34668151]
[1770047881747,4.16578594,104.67,104.63,4.24393061]
[1770047881956,4.16578594,104.67,104.63,8.78707317]
[1770047882134,4.24634648,104.65,104.61,42.24460076]
[1770047882536,4.24634648,104.65,104.61,33.45752759]
[1770047882735,4.24634648,104.65,104.61,18.34631188]
[1770047883248,4.24634648,104.65,104.61,42.24460076]
[1770047883537,4.24634648,104.65,104.62,8.78707317]
[1770047883737,4.24634648,104.67,104.63,8.78707317]
[1770047884151,4.24634648,104.66,104.62,8.78707317]
[1770047884353,4.24634648,104.65,104.61,91.24460076]
[1770047884758,4.24634648,104.68,104.64,8.78707317]
[1770047884936,4.24634648,104.69,104.63,33.45120902]
[1770047885266,4.24634648,104.69,104.68,8.78707317]
[1770047885766,4.24634648,104.69,104.67,8.78707317]
[1770047885943,4.24634648,104.69,104.68,8.78707317]
[1770047886360,4.24634648,104.72,104.68,8.78707317]
[1770047886660,4.24634648,104.72,104.69,8.78707317]
[1770047887042,4.24634648,104.72,104.66,0.50730704]
[1770047887043,4.24634648,104.72,104.67,23.88300905]
[1770047887359,4.24634648,104.72,104.69,8.78707317]
[1770047887737,4.24634648,104.71,104.67,18.34047033]
[1770047888045,4.24634648,104.71,104.68,8.78707317]
[1770047888356,4.24634648,104.71,104.69,8.78707317]
[1770047888557,4.24634648,104.71,104.68,18.33999083]
[1770047888749,4.24634648,104.71,104.68,8.78707317]
[1770047889059,4.24634648,104.71,104.69,18.33903067]
[1770047889442,4.24634648,104.71,104.69,8.78707317]
[1770047889663,4.24634648,104.71,104.68,18.33947761]
[1770047889862,4.24634648,104.73,104.7,8.78707317]
[1770047890761,4.24634648,104.73,104.71,8.78707317]
[1770047891068,4.24634648,104.75,104.72,8.78707317]
[1770047891361,0.2,104.76,104.74,8.78707317]
[1770047891962,4.44634648,104.76,104.73,8.78707317]
[1770047892267,4.24634648,104.77,104.75,8.78707317]
[1770047892943,4.24634648,104.77,104.73,0.50730704]
[1770047893153,4.24634648,104.77,104.75,18.3329605]
[1770047893352,4.24634648,104.77,104.74,9.54723353]
[1770047893551,4.24634648,104.77,104.74,18.3343067]
[1770047894060,4.24634648,104.77,104.74,18.33421297]
[1770047894258,4.24634648,104.77,104.74,8.78707317]
[1770047894568,4.24634648,104.76,104.72,9.54897275]
[1770047894778,4.24634648,104.76,104.72,18.33604592]
[1770047895068,4.24634648,104.77,104.74,8.78707317]
[1770047895277,4.24634648,104.77,104.74,18.33435003]
[1770047895442,4.24634648,104.77,104.74,8.78707317]
[1770047895643,4.24634648,104.77,104.74,18.33429959]
[1770047895846,8.78707317,104.76,104.72,8.78707317]
[1770047896146,13.03341965,104.77,104.73,8.78707317]
[1770047896347,4.24634648,104.77,104.74,18.33429138]
[1770047896656,4.44634648,104.79,104.76,8.78707317]
[1770047896863,4.44634648,104.79,104.77,8.78707317]
[1770047897060,4.44634648,104.79,104.76,8.78707317]
[1770047897262,0.2,104.79,104.77,8.78707317]
[1770047897575,0.2,104.79,104.74,33.92315232]
[1770047897576,4.44634648,104.79,104.76,18.33225359]
[1770047898141,0.2,104.79,104.77,9.54449355]
[1770047898349,4.44634648,104.81,104.78,8.78707317]
[1770047898860,0.2,104.86,104.79,8.78707317]
[1770047899071,8.78707317,104.85,104.8,8.78707317]
[1770047899450,8.78707317,104.85,104.8,18.32892992]
[1770047900046,8.78707317,104.85,104.8,8.78707317]
[1770047900244,8.78707317,104.84,104.8,8.78707317]
[1770047900470,8.78707317,104.84,104.79,22.57359204]
[1770047900857,12.95324634,104.83,104.79,8.78707317]
[1770047901256,12.95324634,104.81,104.77,8.78707317]
[1770047901464,4.16617317,104.8,104.77,8.78707317]
[1770047901646,4.16617317,104.79,104.75,18.33311873]
[1770047901847,4.16617317,104.77,104.74,8.78707317]
[1770047902071,4.16617317,104.77,104.73,18.33500923]
[1770047902661,12.95324634,104.77,104.73,18.33500923]
[1770047902967,12.95324634,104.77,104.73,22.55078243]
[1770047903353,12.95324634,104.77,104.73,13.00284637]
[1770047904156,12.95324634,104.77,104.72,13.00284637]
[1770047904364,4.16617317,104.77,104.73,18.33535815]
[1770047904766,12.95324634,104.77,104.73,18.33535815]
[1770047906169,4.16617317,104.77,104.73,18.33535815]
[1770047906345,12.95324634,104.77,104.73,18.33535815]
[1770047906748,12.95324634,104.77,104.73,9.54828498]
[1770047906971,4.16617317,104.77,104.73,18.33535815]
[1770047907874,12.95324634,104.77,104.73,18.33535815]
[1770047908162,4.16617317,104.77,104.74,8.78707317]
[1770047908365,4.16617317,104.78,104.74,13.76281266]
[1770047908568,12.95324634,104.78,104.74,18.33411263]
[1770047908767,4.16617317,104.78,104.74,18.33411263]
[1770047909068,12.95324634,104.78,104.74,18.33411263]
[1770047909250,4.16617317,104.77,104.74,18.33411263]
[1770047909571,4.16617317,104.77,104.74,18.33444272]
[1770047910357,4.16617317,104.78,104.75,8.78707317]
[1770047911661,4.16617317,104.78,104.74,9.54741917]
[1770047911662,4.16617317,104.77,104.74,9.54741917]
[1770047911863,4.16617317,104.77,104.74,18.33449234]
[1770047912463,8.78707317,104.79,104.74,18.33449234]
[1770047912464,4.16617317,104.78,104.74,9.54741917]
[1770047912672,4.16617317,104.76,104.73,9.54755501]
[1770047913173,4.16617317,104.76,104.74,9.54741069]
[1770047913677,4.16617317,104.76,104.73,18.33495249]
[1770047914475,4.16617317,104.74,104.71,35.32707317]
[1770047914970,12.95324634,104.77,104.73,13.00284637]
[1770047915368,4.16617317,104.76,104.73,8.78707317]
[1770047915690,4.16617317,104.76,104.73,18.33514228]
[1770047916063,4.16617317,104.79,104.75,13.00284637]
[1770047916379,4.16617317,104.79,104.75,18.33305644]
[1770047916782,4.16617317,104.79,104.77,8.78707317]
[1770047917163,12.95324634,104.82,104.78,4.2157732]
[1770047917370,4.16617317,104.82,104.78,13.00284637]
[1770047917672,4.16617317,104.82,104.75,59.93233171]
[1770047917673,4.16617317,104.8,104.77,8.78707317]
[1770047917864,4.16617317,104.82,104.78,8.78707317]
[1770047918491,4.16617317,104.81,104.78,8.78707317]
[1770047919193,4.16617317,104.81,104.77,8.78707317]
[1770047920297,4.16617317,104.81,104.77,18.3313723]
[1770047920673,4.16617317,104.81,104.77,8.78707317]
[1770047921795,4.16617317,104.81,104.77,18.33179016]
[1770047922988,4.16617317,104.85,104.78,13.00284637]
[1770047923178,4.16617317,104.82,104.78,13.00284637]
[1770047923491,14.01244816,104.86,104.8,13.00284637]
[1770047923492,4.16617317,104.84,104.8,13.00284637]
[1770047923668,0.2,104.86,104.83,22.5421004]
[1770047923864,0.2,104.86,104.82,8.78707317]
[1770047924067,0.2,104.86,104.82,22.54283726]
[1770047924270,0.2,104.86,104.83,13.00284637]
[1770047924789,0.2,104.86,104.84,8.78707317]
[1770047925192,0.2,104.86,104.83,4.2157732]
[1770047925394,0.2,104.86,104.84,8.78707317]
[1770047925780,4.36617317,104.86,104.83,4.2157732]
[1770047925986,4.16617317,104.85,104.81,22.54375368]
[1770047926494,4.16617317,104.85,104.81,13.00284637]
[1770047926674,4.16617317,104.84,104.81,4.2157732]
[1770047926876,4.16617317,104.84,104.81,13.00284637]
[1770047927193,4.16617317,104.84,104.81,4.2157732]
[1770047927584,4.16617317,104.84,104.81,13.00284637]
[1770047927898,4.16617317,104.83,104.79,40.27841816]
[1770047928078,4.16617317,104.83,104.79,49.06549133]
[1770047929074,4.16617317,104.83,104.79,39.52284637]
[1770047929279,4.41746988,104.82,104.79,26.52]
[1770047929480,4.41746988,104.81,104.78,4.3806889]
[1770047929685,4.41746988,104.83,104.79,8.78707317]
[1770047929885,4.41746988,104.83,104.79,18.32952277]
[1770047930204,4.23365341,104.85,104.8,8.78707317]
[1770047930376,4.23365341,104.84,104.8,8.78707317]
[1770047931303,4.23365341,104.84,104.8,12.94235117]
[1770047932398,4.23365341,104.84,104.8,22.45151867]
[1770047933585,12.98813731,104.84,104.8,22.45151867]
[1770047933993,4.23365341,104.83,104.8,22.45151867]
[1770047935003,12.98813731,104.83,104.79,18.29716003]
[1770047935195,12.98813731,104.83,104.79,22.45243803]
[1770047935518,4.23365341,104.83,104.79,22.45243803]
[1770047936014,4.23365341,104.79,104.76,9.54524776]
[1770047936309,4.23365341,104.79,104.76,22.45500966]
[1770047936604,4.23365341,104.8,104.76,22.45500966]
[1770047937707,12.98813731,104.8,104.76,13.70052576]
[1770047938006,12.98813731,104.8,104.76,4.155278]
[1770047938210,4.23365341,104.79,104.76,4.155278]
[1770047938413,4.23365341,104.79,104.75,22.45590719]
[1770047938590,12.98813731,104.79,104.75,13.70142329]
[1770047938990,4.23365341,104.79,104.75,22.45590719]
[1770047939391,4.23365341,104.8,104.76,12.9097619]
[1770047939593,4.23365341,104.76,104.73,22.45744824]
[1770047939793,4.23365341,104.76,104.67,5.46086188]
[1770047939794,4.23365341,104.75,104.71,12.9097619]
[1770047939994,12.98813731,104.75,104.71,13.70541677]
[1770047940194,12.98813731,104.75,104.71,22.45990067]
[1770047940390,12.98813731,104.75,104.71,9.55012776]
[1770047940601,12.98813731,104.74,104.7,22.46023609]
[1770047940800,4.23365341,104.74,104.7,22.46023609]
[1770047941008,4.23365341,104.74,104.7,12.9097619]
[1770047941205,4.23365341,104.74,104.71,4.155278]
[1770047941413,4.23365341,104.74,104.71,13.70535806]
[1770047941598,4.23365341,104.74,104.71,22.45984196]
[1770047941788,8.7544839,104.76,104.72,12.9097619]
[1770047941789,4.23365341,104.76,104.72,12.9097619]
[1770047942404,4.23365341,104.72,104.68,12.9097619]
[1770047942612,4.23365341,104.74,104.7,22.46021229]
[1770047942913,4.23365341,104.73,104.7,13.70572839]
[1770047943093,4.23365341,104.72,104.69,9.55184758]
[1770047943588,4.23365341,104.72,104.68,13.70790725]
[1770047943589,12.98813731,104.72,104.68,13.70790725]
[1770047943790,12.98813731,104.73,104.69,4.155278]
[1770047944202,4.23365341,104.72,104.69,4.155278]
[1770047945202,4.23365341,104.72,104.68,8.7544839]